bitfinex/quotes_SOLUSD_20251201
["timestamp","ask_amount","ask_price","bid_price","bid_amount"]
[1764569355472,3.5,126.39,126.38,11.52040561]
[1764569359951,3.5,126.41,126.38,11.52040561]
[1764569360254,4.16,126.41,126.38,11.52040561]
[1764569361072,12.96994492,126.41,126.4,2.88776121]
[1764569365876,12.96994492,126.41,126.38,2.88776121]
[1764569366078,8.80994492,126.39,126.38,2.88776121]
[1764569366254,3.5,126.41,126.39,0.67]
[1764569366455,3.5,126.41,126.4,2.88776121]
[1764569368262,4.19,126.41,126.4,2.88776121]
[1764569369059,12.99994492,126.41,126.4,2.88776121]
[1764569371083,8.80994492,126.4,126.38,2.88776121]
[1764569371260,9.49994492,126.4,126.38,2.88776121]
[1764569371460,9.49994492,126.39,126.38,2.88776121]
[1764569375887,8.80994492,126.39,126.38,2.88776121]
[1764569376693,8.80994492,126.38,126.36,2.88776121]
[1764569376869,8.80994492,126.38,126.35,0.2]
[1764569376870,8.80994492,126.36,126.35,0.2]
[1764569377394,9.49994492,126.36,126.35,0.2]
[1764569377594,8.80994492,126.36,126.35,3.08776121]
[1764569384792,8.80994492,126.36,126.35,0.2]
[1764569385095,8.80994492,126.36,126.35,3.08776121]
[1764569386703,8.80994492,126.36,126.35,0.2]
[1764569386898,8.80994492,126.36,126.35,3.08776121]
[1764569387691,65.5,126.37,126.35,11.67228435]
[1764569387893,74.30994492,126.37,126.36,2.88776121]
[1764569390274,65.5,126.37,126.36,11.47165801]
[1764569395604,3.5,126.37,126.36,11.47165801]
[1764569399016,3.5,126.37,126.36,23.02270285]
[1764569399203,3.5,126.37,126.36,11.47165801]
[1764569399401,3.5,126.39,126.36,42.80744485]
[1764569399598,3.5,126.39,126.38,2.88776121]
[1764569399995,3.5,126.39,126.38,3.59776121]
[1764569400415,3.5,126.39,126.38,13.13470147]
[1764569401897,0.72,126.45,126.41,16.308864]
[1764569402100,9.52994492,126.45,126.44,4.51205707]
[1764569402328,4.22,126.45,126.44,4.51205707]
[1764569402619,4.22,126.45,126.44,12.42094666]
[1764569403195,3.5,126.45,126.44,12.42094666]
[1764569403391,3.5,126.45,126.44,13.13094666]
[1764569403839,3.5,126.45,126.44,12.42094666]
[1764569403999,3.5,126.45,126.44,7.90888959]
[1764569404199,3.5,126.45,126.44,12.42094666]
[1764569405729,8.80994492,126.44,126.43,7.90939984]
[1764569405929,9.52994492,126.44,126.43,12.42145691]
[1764569406498,4.22,126.45,126.43,12.42145691]
[1764569406698,4.22,126.45,126.44,4.51205707]
[1764569408322,4.22,126.45,126.43,12.42137573]
[1764569408832,4.22,126.45,126.44,4.51205707]
[1764569409004,12.30994492,126.45,126.44,4.51205707]
[1764569409923,13.02994492,126.45,126.44,4.51205707]
[1764569410516,13.02994492,126.45,126.42,12.42198153]
[1764569410821,8.80994492,126.43,126.39,7.91201835]
[1764569411126,62.72,126.44,126.39,7.91201835]
[1764569411127,8.80994492,126.41,126.4,4.51205707]
[1764569411329,8.80994492,126.41,126.39,12.42407542]
[1764569411629,9.52994492,126.41,126.4,4.51205707]
[1764569412425,9.52994492,126.41,126.4,12.42344947]
[1764569413419,8.80994492,126.41,126.4,12.42344947]
[1764569415726,4.22,126.42,126.4,32.91193048]
[1764569415727,3.5,126.42,126.4,32.91193048]
[1764569415925,3.5,126.42,126.41,5.22205707]
[1764569416520,3.5,126.42,126.41,9.73411414]
[1764569416725,8.80994492,126.45,126.41,9.73411414]
[1764569416914,3.5,126.44,126.42,5.22205707]
[1764569417303,3.5,126.44,126.43,0.71]
[1764569417813,3.5,126.44,126.43,8.61951514]
[1764569418016,3.5,126.44,126.43,13.13157221]
[1764569418216,3.5,126.44,126.41,7.91024342]
[1764569418403,3.5,126.44,126.43,4.51205707]
[1764569419807,3.5,126.44,126.43,12.42157221]
[1764569422531,12.30994492,126.44,126.43,12.42157221]
[1764569423620,3.5,126.44,126.43,13.13157221]
[1764569427615,62.0,126.45,126.43,32.90536007]
[1764569427814,62.0,126.45,126.44,5.21205707]
[1764569428433,3.5,126.46,126.44,5.21205707]
[1764569428434,3.5,126.46,126.45,7.90826413]
[1764569428615,3.5,126.46,126.45,12.4203212]
[1764569429135,3.5,126.46,126.45,13.1203212]
[1764569434718,62.71,126.51,126.48,16.308864]
[1764569434936,13.01994492,126.51,126.5,4.51205707]
[1764569436641,13.01994492,126.51,126.5,12.4171954]
[1764569437218,3.5,126.51,126.5,13.1171954]
[1764569437726,9.00994492,126.53,126.5,32.88004124]
[1764569437924,12.50994492,126.53,126.52,4.51205707]
[1764569438241,13.21994492,126.53,126.52,4.51205707]
[1764569438769,13.21994492,126.53,126.52,12.41594578]
[1764569440819,13.21994492,126.53,126.51,7.90432608]
[1764569441125,0.71,126.52,126.5,4.51205707]
[1764569442332,12.50994492,126.53,126.52,7.90388871]
[1764569442640,13.21994492,126.53,126.52,12.41594578]
[1764569445252,12.50994492,126.53,126.52,12.41594578]
[1764569445756,9.00994492,126.53,126.52,12.41594578]
[1764569445928,0.2,126.53,126.52,13.11594578]
[1764569446129,0.2,126.53,126.52,7.90388871]
[1764569446322,0.2,126.53,126.52,12.41594578]
[1764569446551,0.91,126.53,126.52,12.41594578]
[1764569447061,0.91,126.53,126.52,7.90388871]
[1764569448453,0.91,126.53,126.51,7.90451291]
[1764569448658,4.21,126.52,126.51,7.90451291]
[1764569449447,4.21,126.52,126.49,7.9057633]
[1764569449638,0.71,126.51,126.49,12.41782037]
[1764569450041,3.5,126.5,126.49,12.41782037]
[1764569450965,3.5,126.5,126.49,13.11782037]
[1764569451339,3.5,126.5,126.49,8.6057633]
[1764569451776,3.5,126.5,126.49,13.11782037]
[1764569452268,3.5,126.5,126.49,8.6057633]
[1764569452443,3.5,126.5,126.49,13.11782037]
[1764569452952,13.01994492,126.5,126.47,12.4184869]
[1764569453141,9.51994492,126.49,126.47,7.90642983]
[1764569456055,3.5,126.44,126.43,13.12135144]
[1764569457569,3.5,126.44,126.43,12.42135144]
[1764569458563,3.5,126.44,126.43,13.12135144]
[1764569459960,3.5,126.44,126.43,12.42135144]
[1764569460563,3.5,126.44,126.43,13.12135144]
[1764569460940,3.5,126.44,126.43,12.42135144]
[1764569461661,8.80994492,126.43,126.4,4.51205707]
[1764569462060,9.49994492,126.43,126.4,5.21205707]
[1764569462443,8.80994492,126.43,126.4,0.7]
[1764569462652,9.49994492,126.43,126.41,10.79858385]
[1764569463450,9.49994492,126.43,126.41,7.91052636]
[1764569464781,3.5,126.44,126.42,0.7]
[1764569465271,4.19,126.44,126.41,31.27550023]
[1764569466483,3.5,126.45,126.43,2.88805749]
[1764569466681,3.5,126.45,126.44,2.88805749]
[1764569466980,3.5,126.45,126.43,3.58805749]
[1764569468054,3.5,126.45,126.44,2.88805749]
[1764569468254,3.5,126.45,126.44,10.79694708]
[1764569468796,3.5,126.45,126.44,11.49694708]
[1764569469075,3.5,126.49,126.44,31.26917105]
[1764569469248,3.5,126.49,126.48,2.88805749]
[1764569469860,0.69,126.52,126.48,15.14028745]
[1764569470170,0.89,126.53,126.51,2.88805749]
[1764569470375,3.5,126.52,126.51,10.79257096]
[1764569470675,4.19,126.52,126.51,10.79257096]
[1764569472070,3.5,126.52,126.51,10.79257096]
[1764569472570,3.5,126.52,126.51,11.49257096]
[1764569472773,3.5,126.52,126.51,2.88805749]
[1764569472978,4.19,126.52,126.51,2.88805749]
[1764569473670,3.5,126.52,126.51,2.88805749]
[1764569474270,3.5,126.52,126.51,10.79257096]
[1764569479160,3.5,126.52,126.51,11.49257096]
[1764569480076,0.2,126.53,126.51,11.49257096]
[1764569480284,0.2,126.53,126.52,3.58805749]
[1764569480474,0.2,126.53,126.52,11.4919462]
[1764569482679,0.2,126.54,126.52,23.04417616]
[1764569482993,0.2,126.56,126.53,15.14028745]
[1764569483295,0.2,126.56,126.55,2.88805749]
[1764569483692,0.2,126.56,126.55,3.58805749]
[1764569483985,0.2,126.57,126.55,11.4900725]
[1764569484164,0.2,126.57,126.56,3.58805749]
[1764569485665,0.2,126.57,126.56,27.79831213]
[1764569486081,0.2,126.57,126.56,27.09831213]
[1764569486385,0.2,126.57,126.56,27.75831213]
[1764569487969,1e-08,126.57,126.56,27.75831213]
[1764569488274,1e-08,126.58,126.57,0.66]
[1764569488475,1e-08,126.58,126.57,3.54805749]
[1764569489476,1e-08,126.58,126.57,11.44882386]
[1764569495198,0.2,126.6,126.57,31.20073979]
[1764569495402,0.2,126.6,126.59,30.74915145]
[1764569495697,0.2,126.61,126.59,30.74915145]
[1764569495902,0.2,126.61,126.6,31.40915145]
[1764569496400,27.97400456,126.64,126.6,39.3080456]
[1764569496598,28.68400456,126.64,126.63,2.88805749]
[1764569497005,27.97400456,126.64,126.63,2.88805749]
[1764569497179,28.68400456,126.64,126.61,0.66]
[1764569497384,28.68400456,126.64,126.63,2.88805749]
[1764569498997,27.97400456,126.64,126.63,2.88805749]
[1764569499203,27.97400456,126.64,126.63,3.54805749]
[1764569499403,27.97400456,126.64,126.63,2.88805749]
[1764569500410,27.97400456,126.64,126.63,10.78508031]
[1764569501398,28.68400456,126.64,126.63,10.78508031]
[1764569501608,99.49394948,126.64,126.62,10.78566762]
[1764569501914,0.71,126.63,126.62,10.78566762]
[1764569503487,0.71,126.63,126.62,7.89761013]
[1764569504624,0.71,126.63,126.62,10.78566762]
[1764569504917,0.71,126.63,126.62,2.88805749]
[1764569505693,89.97400456,126.64,126.62,2.88805749]
[1764569505899,89.97400456,126.64,126.63,2.88805749]
[1764569505900,90.68400456,126.64,126.63,2.88805749]
[1764569506094,27.97400456,126.64,126.63,10.78508031]
[1764569506284,27.97400456,126.64,126.63,11.44508031]
[1764569506488,27.97400456,126.64,126.63,10.78508031]
[1764569506783,27.97400456,126.64,126.63,11.44508031]
[1764569512511,29.31182867,126.66,126.64,15.10028745]
[1764569512814,29.31182867,126.66,126.65,19.19692149]
[1764569513015,29.31182867,126.66,126.65,27.09269724]
[1764569513901,30.02182867,126.66,126.65,10.78383324]
[1764569514504,30.02182867,126.66,126.64,7.89622928]
[1764569514802,29.31182867,126.66,126.65,2.88805749]
[1764569515008,29.31182867,126.66,126.65,10.78383324]
[1764569515207,30.02182867,126.66,126.65,10.78383324]
[1764569517619,29.31182867,126.66,126.65,10.78383324]
[1764569518020,29.31182867,126.66,126.65,11.47383324]
[1764569519504,29.31182867,126.66,126.65,10.78383324]
[1764569519700,8.80994492,126.65,126.61,19.74515649]
[1764569520007,3.48,126.64,126.61,30.53148425]
[1764569520208,4.17,126.64,126.61,30.53148425]
[1764569520408,0.69,126.63,126.61,30.53148425]
[1764569520715,3.48,126.62,126.61,30.53148425]
[1764569521022,3.48,126.62,126.61,7.89827027]
[1764569521216,3.48,126.62,126.61,10.78632776]
[1764569521422,3.48,126.62,126.61,11.47632776]
[1764569521729,3.48,126.65,126.61,31.22200345]
[1764569521918,3.48,126.65,126.64,2.88805749]
[1764569522426,3.48,126.65,126.64,4.49498577]
[1764569522726,3.48,126.65,126.64,28.70024901]
[1764569522918,3.48,126.65,126.64,29.39024901]
[1764569523120,3.48,126.65,126.64,28.70024901]
[1764569527304,3.48,126.65,126.64,24.20526324]
[1764569527603,3.48,126.65,126.64,28.70024901]
[1764569530826,3.48,126.65,126.64,24.20526324]
[1764569531006,3.48,126.65,126.64,28.70024901]
[1764569532132,4.17,126.65,126.64,7.89639924]
[1764569532305,29.31182867,126.66,126.64,13.08138501]
[1764569532306,32.79182867,126.66,126.64,13.08138501]
[1764569532506,32.79182867,126.66,126.65,4.49498577]
[1764569533614,32.79182867,126.66,126.65,5.18498577]
[1764569534034,32.79182867,126.66,126.65,12.39076152]
[1764569535551,32.79182867,126.66,126.65,13.08076152]
[1764569536710,32.79182867,126.66,126.65,7.89577575]
[1764569536911,32.79182867,126.66,126.65,12.39076152]
[1764569537111,32.79182867,126.66,126.65,13.08076152]
[1764569538815,29.31182867,126.66,126.65,13.08076152]
[1764569539217,29.68074073,126.67,126.65,53.62405068]
[1764569539531,30.81856484,126.69,126.68,16.308864]
[1764569539723,30.81856484,126.69,126.68,20.80384977]
[1764569539931,30.81856484,126.69,126.68,21.49384977]
[1764569540833,30.81856484,126.69,126.68,29.38775567]
[1764569541032,34.98856484,126.69,126.68,7.8939059]
[1764569541214,34.29856484,126.69,126.68,12.38889167]
[1764569543638,34.29856484,126.69,126.67,27.63083089]
[1764569543818,34.29856484,126.69,126.68,5.18498577]
[1764569544221,34.29856484,126.69,126.68,4.49498577]
[1764569544947,34.29856484,126.69,126.68,5.18498577]
[1764569545431,30.81856484,126.69,126.68,5.18498577]
[1764569545947,34.96856484,126.69,126.68,7.8939059]
[1764569546238,34.96856484,126.69,126.68,12.38889167]
[1764569550317,34.96856484,126.69,126.67,32.12581666]
[1764569551929,9.47994492,126.68,126.66,7.89486629]
[1764569552246,3.48,126.67,126.66,7.89486629]
[1764569552547,4.15,126.67,126.66,7.89486629]
[1764569553840,4.15,126.67,126.65,7.89554083]
[1764569554016,0.67,126.66,126.64,7.89636934]
[1764569554344,3.48,126.65,126.64,7.89636934]
[1764569554747,4.15,126.65,126.64,7.89636934]
[1764569558256,12.95994492,126.65,126.62,24.2065105]
[1764569558424,0.67,126.64,126.62,24.2065105]
[1764569558625,3.48,126.63,126.62,7.8976465]
[1764569559024,4.15,126.63,126.62,7.8976465]
[1764569559756,4.15,126.63,126.61,12.39312565]
[1764569559949,4.15,126.63,126.61,12.39308985]
[1764569560350,4.15,126.63,126.61,13.07308985]
[1764569560541,3.48,126.63,126.61,13.07308985]
[1764569562743,4.15,126.63,126.61,12.39308985]
[1764569565556,0.67,126.62,126.61,7.89810408]
[1764569565743,3.48,126.63,126.61,7.89810408]
[1764569565951,4.15,126.63,126.61,7.89810408]
[1764569566854,4.15,126.63,126.61,12.39308985]
[1764569568152,0.67,126.62,126.61,7.89810408]
[1764569572957,9.47994492,126.62,126.59,12.39424879]
[1764569573256,3.48,126.61,126.59,12.39424879]
[1764569573444,4.15,126.61,126.59,12.39424879]
[1764569575236,0.67,126.6,126.58,12.39509192]
[1764569575559,0.67,126.6,126.56,4.49498577]
[1764569575560,3.48,126.59,126.56,4.49498577]
[1764569575729,3.48,126.59,126.56,7.90116373]
[1764569575935,0.66,126.58,126.56,12.3961495]
[1764569576133,3.48,126.57,126.56,12.3961495]
[1764569576547,3.48,126.57,126.56,7.90116373]
[1764569576745,3.48,126.57,126.56,12.3961495]
[1764569576746,4.14,126.57,126.56,12.3961495]
[1764569576944,3.48,126.57,126.56,12.3961495]
[1764569580358,3.48,126.57,126.56,13.0761495]
[1764569581060,0.66,126.64,126.59,16.308864]
[1764569581239,3.48,126.63,126.62,4.49498577]
[1764569582141,4.14,126.63,126.62,4.49498577]
[1764569582466,3.48,126.63,126.62,4.49498577]
[1764569583362,3.48,126.63,126.62,12.39263227]
[1764569584363,3.48,126.63,126.62,2.87799213]
[1764569585870,3.48,126.63,126.62,10.77563863]
[1764569586039,3.48,126.63,126.62,11.45563863]
[1764569586244,3.48,126.63,126.62,10.77563863]
[1764569587161,3.48,126.63,126.62,11.45563863]
[1764569588046,62.0,126.64,126.62,11.45563863]
[1764569588246,62.0,126.64,126.63,3.55799213]
[1764569589472,62.0,126.64,126.63,11.45501495]
[1764569590372,3.48,126.65,126.63,11.45501495]
[1764569590558,3.48,126.67,126.64,3.55799213]
[1764569590763,3.48,126.67,126.66,2.87799213]
[1764569590958,9.46994492,126.66,126.63,28.31957987]
[1764569591163,9.46994492,126.66,126.64,2.87799213]
[1764569591485,3.48,126.67,126.66,7.89515237]
[1764569591790,3.48,126.67,126.66,10.7731445]
[1764569592559,3.48,126.67,126.66,11.4531445]
[1764569594764,3.48,126.67,126.66,22.96511302]
[1764569594970,3.48,126.67,126.66,11.4531445]
[1764569600078,3.48,126.67,126.66,8.57515237]
[1764569600276,3.48,126.67,126.66,11.4531445]
[1764569602872,3.48,126.67,126.66,22.96511302]
[1764569603987,92.81856484,126.69,126.66,42.70299396]
[1764569604179,92.81856484,126.69,126.68,19.18685613]
[1764569604381,30.81856484,126.69,126.68,19.18685613]
[1764569604686,30.81856484,126.69,126.68,19.86685613]
[1764569605991,31.53856484,126.69,126.68,10.77189803]
[1764569606177,31.53856484,126.69,126.68,7.8939059]
[1764569606383,31.53856484,126.69,126.68,10.77189803]
[1764569608590,31.53856484,126.69,126.68,7.8939059]
[1764569611785,31.53856484,126.69,126.68,10.77189803]
[1764569611986,31.53856484,126.69,126.68,7.8939059]
[1764569614195,31.53856484,126.69,126.67,10.7723244]
[1764569614400,3.48,126.68,126.67,10.7723244]
[1764569618101,4.2,126.68,126.67,10.7723244]
[1764569618297,3.48,126.68,126.67,10.7723244]
[1764569619399,3.48,126.68,126.67,7.89433227]
[1764569619586,4.2,126.68,126.67,7.89433227]
[1764569619792,4.2,126.68,126.65,10.77362669]
[1764569620101,8.80994492,126.66,126.62,2.87799213]
[1764569620288,3.48,126.65,126.61,10.7762624]
[1764569620494,4.2,126.65,126.61,10.7762624]
[1764569620798,0.72,126.64,126.61,10.7762624]
[1764569620999,3.48,126.63,126.61,10.7762624]
[1764569621603,4.2,126.63,126.61,10.7762624]
[1764569622795,4.2,126.63,126.61,7.89827027]
[1764569622997,3.48,126.63,126.61,11.4762624]
[1764569624010,4.2,126.63,126.61,11.4762624]
[1764569624211,4.2,126.63,126.61,10.7762624]
[1764569624895,3.48,126.63,126.61,8.59827027]
[1764569625096,3.48,126.63,126.61,11.4762624]
[1764569625605,3.48,126.63,126.61,7.89827027]
[1764569625793,0.72,126.62,126.61,7.89827027]
[1764569626202,9.52994492,126.62,126.6,7.89874258]
[1764569626404,62.0,126.64,126.61,3.57799213]
[1764569626611,3.48,126.63,126.62,3.57799213]
[1764569626912,3.48,126.63,126.62,11.47563863]
[1764569627506,3.48,126.63,126.62,10.77563863]
[1764569629813,3.48,126.63,126.62,11.47563863]
[1764569630496,12.28994492,126.67,126.62,31.21975488]
[1764569630818,4.2,126.67,126.65,2.87799213]
[1764569631405,3.48,126.67,126.65,2.87799213]
[1764569631606,3.48,126.67,126.66,2.87799213]
[1764569632599,4.2,126.67,126.65,10.77325627]
[1764569634624,4.2,126.67,126.65,11.47325627]
[1764569634811,3.48,126.67,126.66,3.57799213]
[1764569635918,3.48,126.67,126.66,11.4731445]
[1764569638620,3.48,126.67,126.66,10.7731445]
[1764569638825,3.48,126.67,126.66,11.4331445]
[1764569640622,3.48,126.67,126.66,10.7731445]
[1764569640928,4.14,126.67,126.66,10.7731445]
[1764569642327,3.48,126.67,126.66,10.7731445]
[1764569643017,3.48,126.68,126.66,31.17102544]
[1764569643222,3.48,126.68,126.67,3.53799213]
[1764569643926,3.48,126.68,126.67,11.43252122]
[1764569644130,3.48,126.68,126.67,10.77252122]
[1764569645530,3.48,126.68,126.67,11.43252122]
[1764569646526,3.48,126.68,126.67,13.04762883]
[1764569648323,3.48,126.68,126.67,12.38762883]
[1764569649825,3.48,126.68,126.67,13.04762883]
[1764569650233,3.48,126.68,126.67,12.38762883]
[1764569651022,3.48,126.68,126.67,13.04762883]
[1764569652139,3.48,126.68,126.67,12.38762883]
[1764569653214,30.81856484,126.69,126.67,32.78395155]
[1764569653526,30.81856484,126.69,126.68,5.15309974]
[1764569653727,30.81856484,126.69,126.68,13.04700564]
[1764569662844,30.81856484,126.69,126.68,8.5539059]
[1764569663029,30.81856484,126.69,126.68,13.04700564]
[1764569666430,30.81856484,126.69,126.68,13.07700564]
[1764569672333,30.81856484,126.69,126.68,12.38700564]
[1764569672535,30.81856484,126.69,126.68,13.07700564]
[1764569677665,31.38747689,126.7,126.68,32.8117704]
[1764569677871,31.38747689,126.7,126.69,5.18309974]
[1764569678460,1e-08,126.7,126.69,13.07638255]
[1764569679245,0.71000001,126.7,126.69,12.38638255]
[1764569679662,1e-08,126.7,126.69,12.38638255]
[1764569680743,0.71000001,126.7,126.69,12.38638255]
[1764569681350,0.71000001,126.7,126.69,7.89328281]
[1764569682250,0.71000001,126.7,126.68,27.62867066]
[1764569682458,0.71000001,126.7,126.68,32.8117704]
[1764569682665,1e-08,126.7,126.69,4.49309974]
[1764569683184,1e-08,126.7,126.68,32.1217704]
[1764569683486,1e-08,126.7,126.68,32.8117704]
[1764569683790,0.71000001,126.7,126.68,32.1217704]
[1764569684484,0.71000001,126.7,126.69,12.38638255]
[1764569684781,4.19000001,126.7,126.69,7.89328281]
[1764569685867,4.19000001,126.7,126.68,27.62867066]
[1764569686067,0.71,126.69,126.68,27.62867066]
[1764569686563,0.71,126.69,126.67,16.308864]
[1764569686564,9.51994492,126.69,126.67,7.8944756]
[1764569686764,3.48,126.68,126.67,7.8944756]
[1764569686978,4.19,126.68,126.67,7.8944756]
[1764569687352,3.48,126.68,126.67,27.63079832]
[1764569688279,4.19,126.68,126.67,27.63079832]
[1764569690880,4.19,126.68,126.67,7.8944756]
[1764569693285,3.48,126.68,126.67,7.8944756]
[1764569693481,3.48,126.68,126.67,12.38757534]
[1764569693865,3.48,126.68,126.67,7.8944756]
[1764569694183,4.19,126.68,126.67,7.8944756]
[1764569694568,4.19,126.68,126.67,4.49309974]
[1764569694766,1e-08,126.7,126.67,21.49196374]
[1764569694985,1e-08,126.7,126.69,4.49309974]
[1764569695370,1e-08,126.7,126.69,21.49196374]
[1764569695689,1e-08,126.7,126.69,20.80196374]
[1764569696782,1e-08,126.7,126.69,28.69524655]
[1764569699094,1e-08,126.7,126.69,12.38638255]
[1764569701792,9.45994493,126.7,126.68,7.89381216]
[1764569701970,1e-08,126.7,126.69,4.49309974]
[1764569703699,3.48000001,126.7,126.69,13.07638255]
[1764569706494,3.48000001,126.7,126.69,11.45753916]
[1764569706891,3.48000001,126.7,126.69,7.89328281]
[1764569706892,4.13000001,126.7,126.69,7.89328281]
[1764569707201,4.13000001,126.7,126.67,10.76878544]
[1764569707202,0.65000001,126.7,126.67,10.76878544]
[1764569707390,0.65000001,126.7,126.69,2.87425635]
[1764569707592,3.48000001,126.7,126.69,2.87425635]
[1764569708601,4.13000001,126.7,126.69,7.89328281]
[1764569708792,4.13000001,126.7,126.68,2.87425635]
[1764569708793,12.93994493,126.7,126.68,7.89364459]
[1764569708985,0.65,126.69,126.68,7.89364459]
[1764569710001,3.48000001,126.7,126.68,7.89364459]
[1764569710182,3.48000001,126.7,126.68,10.76790094]
[1764569710374,3.48000001,126.7,126.69,2.87425635]
[1764569710703,3.48000001,126.7,126.69,7.89328281]
[1764569712289,4.13000001,126.7,126.68,7.89364879]
[1764569712598,0.65,126.69,126.68,7.89364879]
[1764569713907,62.65,126.69,126.67,7.89430627]
[1764569714205,3.48,126.68,126.66,7.89497673]
[1764569714405,3.48,126.68,126.65,7.89555465]
[1764569714406,4.13,126.68,126.65,7.89555465]
[1764569714611,4.13,126.68,126.64,10.77051745]
[1764569714612,0.65,126.67,126.64,10.77051745]
[1764569714816,3.48,126.66,126.64,10.77051745]
[1764569715311,0.65,126.65,126.64,10.77051745]
[1764569715490,0.65,126.65,126.64,7.8962611]
[1764569716528,0.65,126.65,126.63,7.89679935]
[1764569716809,3.48,126.64,126.63,7.89679935]
[1764569717108,3.48,126.64,126.63,2.87425635]
[1764569717290,3.48,126.64,126.63,3.56425635]
[1764569717804,3.48,126.66,126.63,19.87312035]
[1764569718007,3.48,126.66,126.64,0.69]
[1764569718205,3.48,126.66,126.65,2.87425635]
[1764569718391,3.48,126.66,126.65,10.7700321]
[1764569718596,4.13,126.66,126.64,10.77040805]
[1764569720194,1e-08,126.7,126.65,16.998864]
[1764569720393,3.50000001,126.7,126.68,2.87425635]
[1764569720599,3.50000001,126.7,126.66,12.1870254]
[1764569720800,3.50000001,126.7,126.68,2.87425635]
[1764569721000,3.50000001,126.7,126.69,2.87425635]
[1764569721397,3.50000001,126.7,126.67,0.69]
[1764569722394,3.50000001,126.7,126.69,2.87425635]
[1764569723498,3.50000001,126.7,126.69,10.76753916]
[1764569726098,32.625301,126.72,126.71,22.7473767]
[1764569728020,32.625301,126.72,126.71,30.63941363]
[1764569728707,33.09421305,126.73,126.71,54.36139204]
[1764569728910,33.09421305,126.73,126.72,6.4085127]
[1764569730095,33.09421305,126.73,126.72,14.29992684]
[1764569730521,33.09421305,126.73,126.72,38.02002962]
[1764569730723,37.16312511,126.74,126.72,46.64279867]
[1764569730927,37.16312511,126.74,126.73,3.53425635]
[1764569731410,37.16312511,126.74,126.73,27.2524838]
[1764569732224,33.66312511,126.74,126.73,35.14327524]
[1764569734824,36.07986127,126.77,126.76,16.308864]
[1764569734825,35.36986127,126.77,126.76,16.308864]
[1764569735026,0.1,126.79,126.76,19.18312035]
[1764569735209,37.17659743,126.81,126.78,2.87425635]
[1764569735404,37.17659743,126.81,126.79,2.87425635]
[1764569735615,0.71,126.79,126.76,16.308864]
[1764569735814,0.71,126.79,126.78,2.87425635]
[1764569736125,13.01994492,126.79,126.78,2.87425635]
[1764569736707,13.01994492,126.79,126.78,10.76193579]
[1764569737215,4.21,126.79,126.78,10.76193579]
[1764569737602,3.5,126.79,126.78,22.91896119]
[1764569737800,36.50768538,126.8,126.78,22.91896119]
[1764569738002,36.50768538,126.8,126.79,3.53425635]
[1764569738404,36.50768538,126.8,126.79,27.73017768]
[1764569740307,36.50768538,126.8,126.79,24.85592133]
[1764569740513,36.50768538,126.8,126.79,27.73017768]
[1764569741319,36.50768538,126.8,126.79,51.43715938]
[1764569743929,36.50768538,126.8,126.79,27.73017768]
[1764569746031,36.50768538,126.8,126.79,27.07017768]
[1764569746410,36.50768538,126.8,126.79,27.73017768]
[1764569755032,36.42449199,126.8,126.79,27.73017768]
[1764569756143,1e-08,126.8,126.79,27.73017768]
[1764569757621,1e-08,126.82,126.8,0.69]
[1764569757847,4.18,126.81,126.79,27.60470067]
[1764569758333,4.18,126.81,126.79,7.88705733]
[1764569758526,4.18,126.81,126.79,27.60470067]
[1764569758842,0.7,126.8,126.79,7.88705733]
[1764569759015,0.7,126.8,126.79,10.76131368]
[1764569761743,0.7,126.8,126.77,27.60823157]
[1764569761937,0.7,126.8,126.79,2.87425635]
[1764569762130,4.18,126.8,126.79,2.87425635]
[1764569763540,4.18,126.8,126.78,2.87425635]
[1764569763843,0.7,126.79,126.77,30.48248792]
[1764569764030,3.48,126.78,126.77,30.48248792]
[1764569764224,3.48,126.78,126.77,27.60823157]
[1764569764536,4.18,126.78,126.77,27.60823157]
[1764569764730,4.18,126.78,126.77,30.48248792]
[1764569767763,12.98994492,126.78,126.76,7.88878534]
[1764569767928,0.7,126.77,126.75,30.48711803]
[1764569768548,0.7,126.77,126.75,32.10053294]
[1764569768936,0.7,126.77,126.76,4.48767126]